[Event "Titled Tuesday Blitz February 21 Late 2023"]
[White "EREBUNI91"]
[Black "Zhigalko, Sergei"]
[BlackFideId "13502956"]
[WhiteElo "2753"]
[BlackElo "2572"]
[Result "1/2-1/2"]
[Round "11"]
[TimeControl "180+2"]
[Date "2023.02.21"]
[WhiteClock "0:00:15"]
[BlackClock "0:00:13"]

1. e4 {[%clk 0:03:00]}  c5 {[%clk 0:03:00]} 2. Nc3 {[%clk 0:03:00]}  Nc6 {[%clk 0:03:00]} 3. Bb5 {[%clk 0:02:59]}  Nd4 {[%clk 0:03:00]} 4. Bc4 {[%clk 0:02:58]}  e6 {[%clk 0:03:01]} 5. Nge2 {[%clk 0:02:57]}  a6 {[%clk 0:02:59]} 6. a4 {[%clk 0:02:57]}  Nf6 {[%clk 0:02:56]} 7. O-O {[%clk 0:02:56]}  Qc7 {[%clk 0:02:54]} 8. d3 {[%clk 0:02:50]}  Be7 {[%clk 0:02:52]} 9. Nxd4 {[%clk 0:02:48]}  cxd4 {[%clk 0:02:53]} 10. Ne2 {[%clk 0:02:49]}  Nxe4 {[%clk 0:02:53]} 11. Nxd4 {[%clk 0:02:21]}  Nf6 {[%clk 0:02:52]} 12. Re1 {[%clk 0:02:13]}  d5 {[%clk 0:02:48]} 13. Bb3 {[%clk 0:02:10]}  O-O {[%clk 0:02:38]} 14. Qf3 {[%clk 0:01:59]}  Bd6 {[%clk 0:02:32]} 15. h3 {[%clk 0:01:58]}  e5 {[%clk 0:02:31]} 16. Ne2 {[%clk 0:01:47]}  e4 {[%clk 0:02:17]} 17. dxe4 {[%clk 0:01:44]}  dxe4 {[%clk 0:02:18]} 18. Qc3 {[%clk 0:01:44]}  Qe7 {[%clk 0:02:03]} 19. Bg5 {[%clk 0:01:39]}  Be5 {[%clk 0:02:04]} 20. Qe3 {[%clk 0:01:33]}  Bxb2 {[%clk 0:01:47]} 21. Rab1 {[%clk 0:01:26]}  Be5 {[%clk 0:01:47]} 22. Nc3 {[%clk 0:01:22]}  Bf5 {[%clk 0:01:41]} 23. Nxe4 {[%clk 0:01:05]}  Bxe4 {[%clk 0:01:24]} 24. Bxf6 {[%clk 0:01:02]}  Qxf6 {[%clk 0:01:16]} 25. Qxe4 {[%clk 0:01:01]}  Bd4 {[%clk 0:01:17]} 26. Qf3 {[%clk 0:00:47]}  Qxf3 {[%clk 0:01:00]} 27. gxf3 {[%clk 0:00:48]}  Rad8 {[%clk 0:00:48]} 28. Re7 {[%clk 0:00:43]}  b6 {[%clk 0:00:47]} 29. Kg2 {[%clk 0:00:39]}  Rd6 {[%clk 0:00:45]} 30. Rd1 {[%clk 0:00:36]}  Rg6+ {[%clk 0:00:35]} 31. Kf1 {[%clk 0:00:36]}  Rd6 {[%clk 0:00:29]} 32. Rb7 {[%clk 0:00:31]}  Rdd8 {[%clk 0:00:20]} 33. c3 {[%clk 0:00:21]}  Bxc3 {[%clk 0:00:16]} 34. Rxd8 {[%clk 0:00:22]}  Rxd8 {[%clk 0:00:16]} 35. Rxb6 {[%clk 0:00:18]}  a5 {[%clk 0:00:14]} 36. Rb7 {[%clk 0:00:19]}  Rf8 {[%clk 0:00:14]} 37. Ke2 {[%clk 0:00:16]}  g6 {[%clk 0:00:13]} 38. Kd3 {[%clk 0:00:16]}  Be1 {[%clk 0:00:13]} 39. Ke2 {[%clk 0:00:16]}  Bb4 {[%clk 0:00:13]} 40. f4 {[%clk 0:00:15]} 1/2-1/2


[Site "https://www.chess.com"]

[Event "Titled Tuesday Blitz February 21 Late 2023"]
[White "Sanal, Vahap"]
[Black "Christiansen, Johan-Sebastian"]
[WhiteFideId "6300545"]
[BlackFideId "1512668"]
[WhiteElo "2600"]
[BlackElo "2579"]
[Result "1-0"]
[Round "11"]
[TimeControl "180+2"]
[Date "2023.02.21"]
[WhiteClock "0:01:52"]
[BlackClock "0:01:50"]

1. e4 {[%clk 0:03:00]}  c5 {[%clk 0:02:59]} 2. Nc3 {[%clk 0:03:01]}  a6 {[%clk 0:02:57]} 3. g3 {[%clk 0:02:59]}  b5 {[%clk 0:02:57]} 4. Bg2 {[%clk 0:03:00]}  Bb7 {[%clk 0:02:57]} 5. d3 {[%clk 0:03:00]}  e6 {[%clk 0:02:56]} 6. Nh3 {[%clk 0:02:57]}  b4 {[%clk 0:02:56]} 7. Ne2 {[%clk 0:02:57]}  d5 {[%clk 0:02:56]} 8. O-O {[%clk 0:02:55]}  Nf6 {[%clk 0:02:56]} 9. Nef4 {[%clk 0:02:53]}  dxe4 {[%clk 0:02:44]} 10. Ng5 {[%clk 0:02:53]}  e5 {[%clk 0:02:44]} 11. Nh5 {[%clk 0:02:51]}  Nc6 {[%clk 0:02:36]} 12. Nxf6+ {[%clk 0:02:48]}  gxf6 {[%clk 0:02:33]} 13. Nxe4 {[%clk 0:02:48]}  f5 {[%clk 0:02:33]} 14. Nd2 {[%clk 0:02:47]}  Qd7 {[%clk 0:02:32]} 15. Nc4 {[%clk 0:02:47]}  Qc7 {[%clk 0:02:32]} 16. Qf3 {[%clk 0:02:21]}  O-O-O {[%clk 0:02:29]} 17. Qxf5+ {[%clk 0:02:20]}  Kb8 {[%clk 0:02:30]} 18. Be3 {[%clk 0:02:12]}  h5 {[%clk 0:02:19]} 19. h4 {[%clk 0:02:11]}  Bh6 {[%clk 0:02:15]} 20. Bxc5 {[%clk 0:02:06]}  Rhg8 {[%clk 0:02:08]} 21. Qxh5 {[%clk 0:01:59]}  Rg6 {[%clk 0:01:55]} 22. Bb6 {[%clk 0:01:59]}  Qd7 {[%clk 0:01:48]} 23. Bxd8 {[%clk 0:01:59]}  Qxd8 {[%clk 0:01:49]} 24. Nxe5 {[%clk 0:01:56]}  Nd4 {[%clk 0:01:50]} 25. Nxg6 {[%clk 0:01:52]} 1-0


[Site "https://www.chess.com"]

[Event "Titled Tuesday Blitz February 21 Late 2023"]
[White "Vasquez Schroeder, Rodrigo"]
[Black "Rorrer, Grayson"]
[WhiteFideId "3400042"]
[BlackFideId "30944996"]
[WhiteElo "2524"]
[BlackElo "2263"]
[Result "1/2-1/2"]
[Round "11"]
[TimeControl "180+2"]
[Date "2023.02.21"]
[WhiteClock "0:00:25"]
[BlackClock "0:00:05"]

1. d4 {[%clk 0:03:00]}  Nf6 {[%clk 0:02:59]} 2. c4 {[%clk 0:03:00]}  e6 {[%clk 0:02:57]} 3. Nf3 {[%clk 0:03:01]}  Bb4+ {[%clk 0:02:56]} 4. Bd2 {[%clk 0:03:01]}  a5 {[%clk 0:02:56]} 5. g3 {[%clk 0:02:59]}  d6 {[%clk 0:02:56]} 6. Bg2 {[%clk 0:03:00]}  Nbd7 {[%clk 0:02:57]} 7. O-O {[%clk 0:03:00]}  e5 {[%clk 0:02:58]} 8. Qc2 {[%clk 0:02:53]}  O-O {[%clk 0:02:56]} 9. e3 {[%clk 0:02:49]}  Re8 {[%clk 0:02:52]} 10. Bc1 {[%clk 0:02:46]}  a4 {[%clk 0:02:35]} 11. a3 {[%clk 0:02:46]}  Ba5 {[%clk 0:02:35]} 12. Qxa4 {[%clk 0:02:46]}  Nb6 {[%clk 0:02:36]} 13. Qc2 {[%clk 0:02:46]}  Be6 {[%clk 0:02:19]} 14. b3 {[%clk 0:02:38]}  Nbd7 {[%clk 0:02:13]} 15. Bb2 {[%clk 0:02:33]}  Bg4 {[%clk 0:02:13]} 16. b4 {[%clk 0:02:29]}  Bb6 {[%clk 0:02:14]} 17. c5 {[%clk 0:02:30]}  Ba7 {[%clk 0:02:14]} 18. dxe5 {[%clk 0:02:30]}  dxe5 {[%clk 0:02:11]} 19. Nbd2 {[%clk 0:02:27]}  Bh5 {[%clk 0:01:51]} 20. Nh4 {[%clk 0:02:27]}  c6 {[%clk 0:01:49]} 21. Nc4 {[%clk 0:02:27]}  Bb8 {[%clk 0:01:50]} 22. Bf3 {[%clk 0:02:24]}  Bxf3 {[%clk 0:01:48]} 23. Nxf3 {[%clk 0:02:25]}  Qe7 {[%clk 0:01:47]} 24. e4 {[%clk 0:02:22]}  Qe6 {[%clk 0:01:32]} 25. Kg2 {[%clk 0:02:22]}  Qg4 {[%clk 0:01:31]} 26. Rae1 {[%clk 0:02:20]}  Nh5 {[%clk 0:01:29]} 27. Bc1 {[%clk 0:02:18]}  Nf4+ {[%clk 0:01:21]} 28. Bxf4 {[%clk 0:02:18]}  exf4 {[%clk 0:01:22]} 29. e5 {[%clk 0:02:13]}  Nf8 {[%clk 0:01:14]} 30. h3 {[%clk 0:02:05]}  Qe6 {[%clk 0:01:11]} 31. Nd6 {[%clk 0:02:05]}  Re7 {[%clk 0:01:09]} 32. Qd3 {[%clk 0:02:02]}  Ng6 {[%clk 0:01:04]} 33. h4 {[%clk 0:01:52]}  Rd7 {[%clk 0:00:37]} 34. h5 {[%clk 0:01:43]}  Ne7 {[%clk 0:00:37]} 35. Ng5 {[%clk 0:01:37]}  Qh6 {[%clk 0:00:37]} 36. Ngxf7 {[%clk 0:01:33]}  Qxh5 {[%clk 0:00:35]} 37. Rh1 {[%clk 0:01:29]}  Qg6 {[%clk 0:00:30]} 38. Qxg6 {[%clk 0:01:23]}  Nxg6 {[%clk 0:00:31]} 39. e6 {[%clk 0:01:18]}  Re7 {[%clk 0:00:31]} 40. Nc4 {[%clk 0:01:12]}  Nf8 {[%clk 0:00:26]} 41. Nd8 {[%clk 0:00:48]}  fxg3 {[%clk 0:00:20]} 42. fxg3 {[%clk 0:00:47]}  Bxg3 {[%clk 0:00:18]} 43. Nxc6 {[%clk 0:00:45]}  bxc6 {[%clk 0:00:19]} 44. Kxg3 {[%clk 0:00:44]}  Rae8 {[%clk 0:00:19]} 45. Nd6 {[%clk 0:00:43]}  Ra8 {[%clk 0:00:19]} 46. Re3 {[%clk 0:00:43]}  Rxe6 {[%clk 0:00:20]} 47. Rhe1 {[%clk 0:00:42]}  Rxa3 {[%clk 0:00:18]} 48. Rxa3 {[%clk 0:00:42]}  Rxe1 {[%clk 0:00:19]} 49. Ra8 {[%clk 0:00:39]}  g6 {[%clk 0:00:14]} 50. Rc8 {[%clk 0:00:38]}  Rb1 {[%clk 0:00:13]} 51. Rb8 {[%clk 0:00:36]}  Kg7 {[%clk 0:00:11]} 52. Ne4 {[%clk 0:00:32]}  Ne6 {[%clk 0:00:09]} 53. Rb7+ {[%clk 0:00:32]}  Kh6 {[%clk 0:00:09]} 54. Nf6 {[%clk 0:00:31]}  Nxc5 {[%clk 0:00:06]} 55. Rxh7+ {[%clk 0:00:28]}  Kg5 {[%clk 0:00:06]} 56. bxc5 {[%clk 0:00:24]}  Kxf6 {[%clk 0:00:06]} 57. Rc7 {[%clk 0:00:24]}  Rb3+ {[%clk 0:00:05]} 58. Kf4 {[%clk 0:00:24]}  Rb4+ {[%clk 0:00:05]} 59. Ke3 {[%clk 0:00:24]}  Ke5 {[%clk 0:00:05]} 60. Rxc6 {[%clk 0:00:24]}  Kd5 {[%clk 0:00:05]} 61. Rxg6 {[%clk 0:00:25]}  Kxc5 {[%clk 0:00:05]} 1/2-1/2


[Site "https://www.chess.com"]

[Event "Titled Tuesday Blitz February 21 Late 2023"]
[White "Salimova, Nurgyul"]
[Black "Kobo, Ori"]
[WhiteFideId "2915138"]
[BlackFideId "2812320"]
[WhiteElo "2391"]
[BlackElo "2559"]
[Result "1/2-1/2"]
[Round "11"]
[TimeControl "180+2"]
[Date "2023.02.21"]
[WhiteClock "0:00:53"]
[BlackClock "0:00:30"]

1. d4 {[%clk 0:03:00]}  Nf6 {[%clk 0:03:00]} 2. Nf3 {[%clk 0:03:01]}  g6 {[%clk 0:03:00]} 3. g3 {[%clk 0:03:00]}  Bg7 {[%clk 0:03:00]} 4. Bg2 {[%clk 0:03:00]}  d6 {[%clk 0:03:01]} 5. O-O {[%clk 0:03:01]}  Bf5 {[%clk 0:03:01]} 6. c4 {[%clk 0:02:59]}  O-O {[%clk 0:03:00]} 7. Nc3 {[%clk 0:02:59]}  Ne4 {[%clk 0:03:00]} 8. Qb3 {[%clk 0:02:36]}  Nxc3 {[%clk 0:02:57]} 9. bxc3 {[%clk 0:02:36]}  Be4 {[%clk 0:02:53]} 10. Bf4 {[%clk 0:02:06]}  b6 {[%clk 0:02:36]} 11. d5 {[%clk 0:01:39]}  Nd7 {[%clk 0:02:31]} 12. Nd4 {[%clk 0:01:39]}  Nc5 {[%clk 0:02:24]} 13. Qd1 {[%clk 0:01:35]}  Bxg2 {[%clk 0:02:24]} 14. Kxg2 {[%clk 0:01:35]}  e5 {[%clk 0:02:21]} 15. Nc6 {[%clk 0:01:31]}  Qd7 {[%clk 0:02:20]} 16. Be3 {[%clk 0:01:31]}  f5 {[%clk 0:02:12]} 17. Bxc5 {[%clk 0:01:31]}  dxc5 {[%clk 0:02:02]} 18. e4 {[%clk 0:01:21]}  Rf7 {[%clk 0:01:27]} 19. Qe2 {[%clk 0:01:16]}  a5 {[%clk 0:01:24]} 20. Rae1 {[%clk 0:01:10]}  Raf8 {[%clk 0:01:18]} 21. exf5 {[%clk 0:01:06]}  Rxf5 {[%clk 0:01:10]} 22. f3 {[%clk 0:01:06]}  Kh8 {[%clk 0:01:00]} 23. Qe4 {[%clk 0:01:04]}  h5 {[%clk 0:00:53]} 24. h4 {[%clk 0:00:59]}  Kh7 {[%clk 0:00:52]} 25. Re2 {[%clk 0:00:55]}  Qf7 {[%clk 0:00:46]} 26. Ree1 {[%clk 0:00:52]}  Qd7 {[%clk 0:00:46]} 27. Re2 {[%clk 0:00:52]}  Qf7 {[%clk 0:00:41]} 28. Ree1 {[%clk 0:00:53]}  Qd7 {[%clk 0:00:30]} 1/2-1/2


[Site "https://www.chess.com"]

[Event "Titled Tuesday Blitz February 21 Late 2023"]
[White "Swiercz, Dariusz"]
[Black "Guzman, Christopher"]
[WhiteFideId "1126881"]
[BlackFideId "6405096"]
[WhiteElo "2637"]
[BlackElo "2271"]
[Result "0-1"]
[Round "11"]
[TimeControl "180+2"]
[Date "2023.02.21"]
[WhiteClock "0:00:01"]
[BlackClock "0:01:46"]

1. Nf3 {[%clk 0:02:35]}  Nf6 {[%clk 0:02:59]} 2. d4 {[%clk 0:02:36]}  e6 {[%clk 0:02:59]} 3. b3 {[%clk 0:02:36]}  b6 {[%clk 0:02:59]} 4. Bb2 {[%clk 0:02:37]}  Bb7 {[%clk 0:03:00]} 5. Nbd2 {[%clk 0:02:37]}  Be7 {[%clk 0:03:01]} 6. g3 {[%clk 0:02:38]}  O-O {[%clk 0:03:01]} 7. Bg2 {[%clk 0:02:38]}  d5 {[%clk 0:03:01]} 8. O-O {[%clk 0:02:38]}  a5 {[%clk 0:03:01]} 9. c4 {[%clk 0:02:37]}  Nbd7 {[%clk 0:03:01]} 10. Qc2 {[%clk 0:02:37]}  c5 {[%clk 0:03:02]} 11. Rad1 {[%clk 0:02:35]}  Rc8 {[%clk 0:03:01]} 12. Qb1 {[%clk 0:02:32]}  Qc7 {[%clk 0:03:01]} 13. cxd5 {[%clk 0:02:31]}  Nxd5 {[%clk 0:02:58]} 14. e4 {[%clk 0:02:30]}  N5f6 {[%clk 0:02:58]} 15. e5 {[%clk 0:02:27]}  Nd5 {[%clk 0:02:57]} 16. Nc4 {[%clk 0:02:26]}  cxd4 {[%clk 0:02:56]} 17. Nxd4 {[%clk 0:02:21]}  Qb8 {[%clk 0:02:54]} 18. Rfe1 {[%clk 0:02:17]}  Rfd8 {[%clk 0:02:45]} 19. Nb5 {[%clk 0:01:47]}  Bb4 {[%clk 0:02:36]} 20. Re2 {[%clk 0:01:38]}  Nf8 {[%clk 0:02:29]} 21. a3 {[%clk 0:01:35]}  Bc5 {[%clk 0:02:28]} 22. Nbd6 {[%clk 0:01:25]}  Rc7 {[%clk 0:02:23]} 23. Nxb7 {[%clk 0:01:19]}  Qxb7 {[%clk 0:02:22]} 24. Red2 {[%clk 0:01:16]}  Rcd7 {[%clk 0:02:20]} 25. Bd4 {[%clk 0:01:06]}  Qc7 {[%clk 0:02:16]} 26. Qb2 {[%clk 0:00:49]}  Ng6 {[%clk 0:02:09]} 27. h4 {[%clk 0:00:32]}  Bxd4 {[%clk 0:02:03]} 28. Rxd4 {[%clk 0:00:13]}  b5 {[%clk 0:02:03]} 29. Nd6 {[%clk 0:00:08]}  Nxe5 {[%clk 0:01:59]} 30. Nxb5 {[%clk 0:00:07]}  Qb8 {[%clk 0:01:56]} 31. a4 {[%clk 0:00:07]}  Nc6 {[%clk 0:01:56]} 32. R4d2 {[%clk 0:00:06]}  Ncb4 {[%clk 0:01:55]} 33. h5 {[%clk 0:00:06]}  h6 {[%clk 0:01:55]} 34. Be4 {[%clk 0:00:06]}  Qb6 {[%clk 0:01:52]} 35. Qd4 {[%clk 0:00:06]}  Qxd4 {[%clk 0:01:49]} 36. Rxd4 {[%clk 0:00:07]}  Kf8 {[%clk 0:01:50]} 37. Bf3 {[%clk 0:00:05]}  Ke7 {[%clk 0:01:50]} 38. Na3 {[%clk 0:00:03]}  Nb6 {[%clk 0:01:46]} 39. Rxd7+ {[%clk 0:00:03]}  Rxd7 {[%clk 0:01:46]} 40. Rd2 {[%clk 0:00:01]}  Rxd2 {[%clk 0:01:46]} 0-1


[Site "https://www.chess.com"]

[Event "Titled Tuesday Blitz February 21 Late 2023"]
[White "KhalilMousavi98"]
[Black "Dourerassou, Jonathan"]
[BlackFideId "628050"]
[WhiteElo "2871"]
[BlackElo "2414"]
[Result "1-0"]
[Round "11"]
[TimeControl "180+2"]
[Date "2023.02.21"]
[WhiteClock "0:02:25"]
[BlackClock "0:00:53"]

1. e4 {[%clk 0:03:00]}  c5 {[%clk 0:02:59]} 2. Nf3 {[%clk 0:03:01]}  d6 {[%clk 0:02:59]} 3. d4 {[%clk 0:03:01]}  cxd4 {[%clk 0:03:00]} 4. Nxd4 {[%clk 0:03:02]}  Nf6 {[%clk 0:03:00]} 5. Nc3 {[%clk 0:03:03]}  Bd7 {[%clk 0:03:01]} 6. Bc4 {[%clk 0:03:03]}  e5 {[%clk 0:03:01]} 7. Nf5 {[%clk 0:03:02]}  Bc6 {[%clk 0:02:58]} 8. Bg5 {[%clk 0:03:00]}  g6 {[%clk 0:02:48]} 9. Ne3 {[%clk 0:02:58]}  Bg7 {[%clk 0:02:44]} 10. Qf3 {[%clk 0:02:57]}  h6 {[%clk 0:02:41]} 11. Bh4 {[%clk 0:02:57]}  Nbd7 {[%clk 0:02:38]} 12. O-O-O {[%clk 0:02:54]}  Qc7 {[%clk 0:02:23]} 13. Nb5 {[%clk 0:02:50]}  Bxb5 {[%clk 0:02:20]} 14. Bxb5 {[%clk 0:02:51]}  O-O {[%clk 0:02:14]} 15. Bxd7 {[%clk 0:02:50]}  Nxd7 {[%clk 0:02:14]} 16. Nd5 {[%clk 0:02:50]}  Qa5 {[%clk 0:02:07]} 17. Kb1 {[%clk 0:02:44]}  f5 {[%clk 0:01:37]} 18. exf5 {[%clk 0:02:41]}  gxf5 {[%clk 0:01:37]} 19. Ne7+ {[%clk 0:02:41]}  Kh7 {[%clk 0:01:36]} 20. Rxd6 {[%clk 0:02:30]}  e4 {[%clk 0:01:26]} 21. Qh5 {[%clk 0:02:28]}  Ne5 {[%clk 0:01:03]} 22. Bg5 {[%clk 0:02:26]}  Qb4 {[%clk 0:00:54]} 23. Rxh6+ {[%clk 0:02:24]}  Bxh6 {[%clk 0:00:53]} 24. Qxh6# {[%clk 0:02:25]} 1-0


[Site "https://www.chess.com"]

[Event "Titled Tuesday Blitz February 21 Late 2023"]
[White "Mekhitarian, Krikor Sevag"]
[Black "Kanakaris, Georgios"]
[WhiteFideId "2107660"]
[BlackFideId "4209460"]
[WhiteElo "2537"]
[BlackElo "2391"]
[Result "1-0"]
[Round "11"]
[TimeControl "180+2"]
[Date "2023.02.21"]
[WhiteClock "0:00:15"]
[BlackClock "0:00:19"]

1. Nf3 {[%clk 0:03:00]}  Nf6 {[%clk 0:03:00]} 2. c4 {[%clk 0:03:00]}  g6 {[%clk 0:03:00]} 3. Nc3 {[%clk 0:02:56]}  Bg7 {[%clk 0:03:00]} 4. e4 {[%clk 0:02:56]}  d6 {[%clk 0:03:01]} 5. d4 {[%clk 0:02:57]}  O-O {[%clk 0:03:01]} 6. h3 {[%clk 0:02:57]}  Nc6 {[%clk 0:03:00]} 7. Be3 {[%clk 0:02:57]}  e5 {[%clk 0:03:00]} 8. d5 {[%clk 0:02:56]}  Nd4 {[%clk 0:03:00]} 9. Nxd4 {[%clk 0:02:53]}  exd4 {[%clk 0:03:01]} 10. Bxd4 {[%clk 0:02:53]}  Nxe4 {[%clk 0:03:01]} 11. Bxg7 {[%clk 0:02:45]}  Re8 {[%clk 0:02:58]} 12. Nxe4 {[%clk 0:01:53]}  Rxe4+ {[%clk 0:02:59]} 13. Be2 {[%clk 0:01:53]}  Kxg7 {[%clk 0:02:59]} 14. O-O {[%clk 0:01:44]}  Qf6 {[%clk 0:02:57]} 15. Qd2 {[%clk 0:01:42]}  Bd7 {[%clk 0:02:42]} 16. b3 {[%clk 0:01:36]}  a5 {[%clk 0:02:38]} 17. Bd3 {[%clk 0:01:28]}  Re7 {[%clk 0:02:32]} 18. Rae1 {[%clk 0:01:24]}  Rxe1 {[%clk 0:02:25]} 19. Rxe1 {[%clk 0:01:24]}  b6 {[%clk 0:02:24]} 20. Bf1 {[%clk 0:00:40]}  Re8 {[%clk 0:02:08]} 21. Rxe8 {[%clk 0:00:40]}  Bxe8 {[%clk 0:02:09]} 22. g3 {[%clk 0:00:41]}  Bd7 {[%clk 0:02:04]} 23. h4 {[%clk 0:00:41]}  Qa1 {[%clk 0:02:03]} 24. Kg2 {[%clk 0:00:31]}  Bf5 {[%clk 0:01:37]} 25. h5 {[%clk 0:00:31]}  gxh5 {[%clk 0:01:19]} 26. a4 {[%clk 0:00:25]}  h6 {[%clk 0:01:13]} 27. Be2 {[%clk 0:00:19]}  Be4+ {[%clk 0:01:05]} 28. Bf3 {[%clk 0:00:12]}  Bxf3+ {[%clk 0:00:58]} 29. Kxf3 {[%clk 0:00:13]}  Qf6+ {[%clk 0:00:53]} 30. Kg2 {[%clk 0:00:13]}  Qe5 {[%clk 0:00:53]} 31. Qd3 {[%clk 0:00:11]}  Qe1 {[%clk 0:00:48]} 32. Qf3 {[%clk 0:00:09]}  Qe5 {[%clk 0:00:42]} 33. Kh3 {[%clk 0:00:09]}  Kg6 {[%clk 0:00:40]} 34. Kg2 {[%clk 0:00:10]}  f5 {[%clk 0:00:38]} 35. Kh3 {[%clk 0:00:09]}  Qe4 {[%clk 0:00:34]} 36. Qxe4 {[%clk 0:00:06]}  fxe4 {[%clk 0:00:34]} 37. Kh4 {[%clk 0:00:07]}  Kf5 {[%clk 0:00:20]} 38. Kxh5 {[%clk 0:00:08]}  e3 {[%clk 0:00:16]} 39. g4+ {[%clk 0:00:06]}  Kf4 {[%clk 0:00:14]} 40. fxe3+ {[%clk 0:00:07]}  Kg3 {[%clk 0:00:15]} 41. Kxh6 {[%clk 0:00:02]}  Kxg4 {[%clk 0:00:15]} 42. Kg6 {[%clk 0:00:03]}  Kf3 {[%clk 0:00:15]} 43. Kf6 {[%clk 0:00:04]}  Kxe3 {[%clk 0:00:16]} 44. Ke6 {[%clk 0:00:04]}  Kd4 {[%clk 0:00:17]} 45. Kd7 {[%clk 0:00:05]}  Kc3 {[%clk 0:00:16]} 46. Kxc7 {[%clk 0:00:06]}  Kxb3 {[%clk 0:00:17]} 47. Kxd6 {[%clk 0:00:06]}  Kxa4 {[%clk 0:00:17]} 48. c5 {[%clk 0:00:07]}  bxc5 {[%clk 0:00:17]} 49. Kxc5 {[%clk 0:00:08]}  Kb3 {[%clk 0:00:18]} 50. d6 {[%clk 0:00:08]}  a4 {[%clk 0:00:19]} 51. d7 {[%clk 0:00:09]}  a3 {[%clk 0:00:19]} 52. d8=Q {[%clk 0:00:10]}  Kb2 {[%clk 0:00:19]} 53. Qd4+ {[%clk 0:00:10]}  Kb1 {[%clk 0:00:20]} 54. Qb4+ {[%clk 0:00:10]}  Ka2 {[%clk 0:00:20]} 55. Kc4 {[%clk 0:00:10]}  Ka1 {[%clk 0:00:20]} 56. Qxa3+ {[%clk 0:00:11]}  Kb1 {[%clk 0:00:17]} 57. Qc3 {[%clk 0:00:11]}  Ka2 {[%clk 0:00:18]} 58. Qb4 {[%clk 0:00:12]}  Ka1 {[%clk 0:00:18]} 59. Kc3 {[%clk 0:00:13]}  Ka2 {[%clk 0:00:19]} 60. Kc2 {[%clk 0:00:14]}  Ka1 {[%clk 0:00:19]} 61. Qa4# {[%clk 0:00:15]} 1-0


[Site "https://www.chess.com"]

[Event "Titled Tuesday Blitz February 21 Late 2023"]
[White "Bryakin, Mikhail"]
[Black "Prydun, Andriy"]
[WhiteFideId "4165314"]
[BlackFideId "14145898"]
[WhiteElo "2455"]
[BlackElo "2134"]
[Result "1-0"]
[Round "11"]
[TimeControl "180+2"]
[Date "2023.02.21"]
[WhiteClock "0:00:43"]
[BlackClock "0:00:02"]

1. e4 {[%clk 0:02:48]}  d5 {[%clk 0:02:57]} 2. exd5 {[%clk 0:02:40]}  Qxd5 {[%clk 0:02:58]} 3. Qf3 {[%clk 0:02:37]}  Nf6 {[%clk 0:02:57]} 4. Nc3 {[%clk 0:02:36]}  Qxf3 {[%clk 0:02:56]} 5. Nxf3 {[%clk 0:02:37]}  c6 {[%clk 0:02:56]} 6. Bc4 {[%clk 0:02:35]}  Bf5 {[%clk 0:02:56]} 7. d3 {[%clk 0:02:36]}  Nbd7 {[%clk 0:02:55]} 8. h3 {[%clk 0:02:33]}  e6 {[%clk 0:02:53]} 9. Bf4 {[%clk 0:02:33]}  Nd5 {[%clk 0:02:50]} 10. Bd2 {[%clk 0:02:33]}  Bb4 {[%clk 0:02:49]} 11. Nxd5 {[%clk 0:02:28]}  Bxd2+ {[%clk 0:02:49]} 12. Kxd2 {[%clk 0:02:29]}  exd5 {[%clk 0:02:49]} 13. Bb3 {[%clk 0:02:29]}  O-O {[%clk 0:02:47]} 14. Rhe1 {[%clk 0:02:29]}  Rfe8 {[%clk 0:02:47]} 15. a3 {[%clk 0:02:22]}  Kf8 {[%clk 0:02:44]} 16. Ba2 {[%clk 0:02:21]}  Nc5 {[%clk 0:02:39]} 17. Nd4 {[%clk 0:02:20]}  Bg6 {[%clk 0:02:38]} 18. b4 {[%clk 0:02:21]}  Ne6 {[%clk 0:02:35]} 19. Nxe6+ {[%clk 0:02:18]}  Rxe6 {[%clk 0:02:36]} 20. Rxe6 {[%clk 0:02:19]}  fxe6 {[%clk 0:02:37]} 21. f4 {[%clk 0:02:19]}  Ke7 {[%clk 0:02:34]} 22. Re1 {[%clk 0:02:20]}  Kd6 {[%clk 0:02:35]} 23. c4 {[%clk 0:02:17]}  Rf8 {[%clk 0:02:32]} 24. c5+ {[%clk 0:02:14]}  Kd7 {[%clk 0:02:31]} 25. g3 {[%clk 0:02:14]}  h5 {[%clk 0:02:29]} 26. h4 {[%clk 0:02:14]}  b5 {[%clk 0:02:20]} 27. Bb3 {[%clk 0:02:12]}  a5 {[%clk 0:02:20]} 28. bxa5 {[%clk 0:02:07]}  Ra8 {[%clk 0:02:19]} 29. Kc3 {[%clk 0:02:08]}  Rxa5 {[%clk 0:02:19]} 30. Kb4 {[%clk 0:02:09]}  Ra8 {[%clk 0:02:19]} 31. d4 {[%clk 0:02:09]}  Bd3 {[%clk 0:02:17]} 32. Ra1 {[%clk 0:01:59]}  Ke7 {[%clk 0:02:16]} 33. Bd1 {[%clk 0:01:59]}  g6 {[%clk 0:02:14]} 34. a4 {[%clk 0:01:59]}  bxa4 {[%clk 0:02:13]} 35. Rxa4 {[%clk 0:02:00]}  Rb8+ {[%clk 0:02:07]} 36. Kc3 {[%clk 0:01:59]}  Rb1 {[%clk 0:01:49]} 37. Bb3 {[%clk 0:01:50]}  Bb5 {[%clk 0:01:40]} 38. Ra7+ {[%clk 0:01:41]}  Kf6 {[%clk 0:01:40]} 39. Rb7 {[%clk 0:01:33]}  Ba4 {[%clk 0:01:31]} 40. Rb6 {[%clk 0:01:16]}  Bxb3 {[%clk 0:01:24]} 41. Rxb3 {[%clk 0:01:17]}  Rg1 {[%clk 0:01:15]} 42. Kb4 {[%clk 0:01:17]}  Ra1 {[%clk 0:00:47]} 43. Ra3 {[%clk 0:01:05]}  Rb1+ {[%clk 0:00:43]} 44. Rb3 {[%clk 0:01:05]}  Ra1 {[%clk 0:00:43]} 45. Ra3 {[%clk 0:01:06]}  Rb1+ {[%clk 0:00:43]} 46. Ka5 {[%clk 0:01:06]}  Kf5 {[%clk 0:00:41]} 47. Re3 {[%clk 0:01:04]}  Rb2 {[%clk 0:00:34]} 48. Ka6 {[%clk 0:01:04]}  Rb1 {[%clk 0:00:34]} 49. Ka7 {[%clk 0:01:05]}  Rb2 {[%clk 0:00:34]} 50. Ra3 {[%clk 0:01:05]}  Ke4 {[%clk 0:00:16]} 51. Ra4 {[%clk 0:01:01]}  Kf3 {[%clk 0:00:14]} 52. Ra6 {[%clk 0:01:00]}  Kxg3 {[%clk 0:00:09]} 53. Rxc6 {[%clk 0:01:01]}  Kxh4 {[%clk 0:00:09]} 54. Rxe6 {[%clk 0:01:01]}  Kg3 {[%clk 0:00:08]} 55. Rxg6+ {[%clk 0:00:47]}  Kxf4 {[%clk 0:00:07]} 56. c6 {[%clk 0:00:48]}  h4 {[%clk 0:00:05]} 57. Rh6 {[%clk 0:00:44]}  Kg4 {[%clk 0:00:02]} 58. c7 {[%clk 0:00:42]}  Rc2 {[%clk 0:00:02]} 59. Kb7 {[%clk 0:00:43]}  h3 {[%clk 0:00:01]} 60. Rc6 {[%clk 0:00:43]}  Rb2+ {[%clk 0:00:01]} 61. Ka7 {[%clk 0:00:43]}  h2 {[%clk 0:00:02]} 62. c8=Q+ {[%clk 0:00:43]} 1-0


[Site "https://www.chess.com"]